[Event "*** Titled Tuesday Blitz"]
[Site "Chess.com"]
[Date "2018.01.02"]
[Round "10"]
[White "Colombiano07"]
[Black "inegrepus"]
[Result "1-0"]
[WhiteElo "2217"]
[BlackElo "2140"]
[TimeControl "180+2"]
[EndTime "15:06:49 PST"]
[Termination "Colombiano07 won by resignation"]

1. e4 {[%clk 0:03:01.9]} 1... c5 {[%clk 0:02:56.8]} 2. Nf3 {[%clk 0:03:02.7]}
2... Nc6 {[%clk 0:02:56.4]} 3. g3 {[%clk 0:03:02.9]} 3... e5 {[%clk 0:02:55.1]}
4. Bg2 {[%clk 0:03:03.6]} 4... d6 {[%clk 0:02:56.5]} 5. O-O {[%clk 0:03:05.1]}
5... Nf6 {[%clk 0:02:57]} 6. c3 {[%clk 0:03:06.6]} 6... Nxe4 {[%clk 0:02:55.3]}
7. d4 {[%clk 0:03:07.5]} 7... cxd4 {[%clk 0:02:56.3]} 8. cxd4 {[%clk 0:03:08.5]}
8... Bg4 {[%clk 0:02:50.1]} 9. d5 {[%clk 0:03:09]} 9... Nd4 {[%clk 0:02:47.5]}
10. Qa4+ {[%clk 0:03:02.4]} 10... Qd7 {[%clk 0:02:44.2]} 11. Qxd7+ {[%clk
0:02:59.5]} 11... Bxd7 {[%clk 0:02:37]} 12. Nxd4 {[%clk 0:03:00.1]} 12... Nxf2
{[%clk 0:02:38.3]} 13. Rxf2 {[%clk 0:02:51.8]} 13... exd4 {[%clk 0:02:38.4]} 14.
Re2+ {[%clk 0:02:53.7]} 14... Kd8 {[%clk 0:02:39.2]} 15. Bg5+ {[%clk 0:02:52.7]}
15... f6 {[%clk 0:02:40.2]} 16. Bf4 {[%clk 0:02:52.5]} 16... g5 {[%clk
0:02:38.7]} 17. Bd2 {[%clk 0:02:51]} 17... f5 {[%clk 0:02:30]} 18. Na3 {[%clk
0:02:51.5]} 18... Bg7 {[%clk 0:02:30.5]} 19. Bxg5+ {[%clk 0:02:43.5]} 19... Kc8
{[%clk 0:02:28.9]} 20. Rc1+ {[%clk 0:02:44.3]} 1-0

[Event "*** Titled Tuesday Blitz"]
[Site "Chess.com"]
[Date "2018.01.02"]
[Round "10"]
[White "DrVelja"]
[Black "AljoschaFeuerstack"]
[Result "1-0"]
[WhiteElo "2545"]
[BlackElo "1908"]
[TimeControl "180+2"]
[EndTime "15:07:37 PST"]
[Termination "DrVelja won by resignation"]

1. e4 {[%clk 0:03:01.9]} 1... c5 {[%clk 0:03:00.7]} 2. Nf3 {[%clk 0:03:02.9]}
2... e6 {[%clk 0:03:01.9]} 3. d4 {[%clk 0:03:03.5]} 3... cxd4 {[%clk 0:03:03.7]}
4. Nxd4 {[%clk 0:03:05]} 4... Nf6 {[%clk 0:03:03.5]} 5. Nc3 {[%clk 0:03:04.8]}
5... Nc6 {[%clk 0:03:04.8]} 6. Nxc6 {[%clk 0:03:03.3]} 6... bxc6 {[%clk
0:03:06.7]} 7. e5 {[%clk 0:03:04.9]} 7... Nd5 {[%clk 0:03:06.8]} 8. Ne4 {[%clk
0:03:06.5]} 8... Qc7 {[%clk 0:03:07]} 9. f4 {[%clk 0:03:08.1]} 9... Qb6 {[%clk
0:03:07.8]} 10. c4 {[%clk 0:03:08.7]} 10... Ne3 {[%clk 0:03:07.2]} 11. Qd3
{[%clk 0:03:09.7]} 11... Bb4+ {[%clk 0:03:05.6]} 12. Ke2 {[%clk 0:03:11.1]}
12... Nxc4 {[%clk 0:03:05.7]} 13. Kf3 {[%clk 0:02:58.4]} 13... Ba6 {[%clk
0:02:43.2]} 14. Qc2 {[%clk 0:02:20.2]} 14... f5 {[%clk 0:02:41.9]} 15. exf6
{[%clk 0:02:10.4]} 15... d5 {[%clk 0:02:40.9]} 16. fxg7 {[%clk 0:02:11.9]} 16...
dxe4+ {[%clk 0:02:39.7]} 17. Qxe4 {[%clk 0:02:13.2]} 1-0

[Event "*** Titled Tuesday Blitz"]
[Site "Chess.com"]
[Date "2018.01.02"]
[Round "10"]
[White "ftorodent"]
[Black "Msb2"]
[Result "0-1"]
[WhiteElo "2523"]
[BlackElo "2734"]
[TimeControl "180+2"]
[EndTime "15:08:34 PST"]
[Termination "Msb2 won by resignation"]

1. d4 {[%clk 0:03:01.9]} 1... Nf6 {[%clk 0:03:00.7]} 2. c4 {[%clk 0:03:02.8]}
2... c5 {[%clk 0:03:02.6]} 3. d5 {[%clk 0:03:03.3]} 3... b5 {[%clk 0:03:02.5]}
4. cxb5 {[%clk 0:03:03.7]} 4... a6 {[%clk 0:03:04]} 5. bxa6 {[%clk 0:03:04.7]}
5... g6 {[%clk 0:03:05.5]} 6. Nc3 {[%clk 0:03:05.4]} 6... Bg7 {[%clk 0:03:07.1]}
7. e4 {[%clk 0:03:02.1]} 7... O-O {[%clk 0:03:08.6]} 8. Be2 {[%clk 0:02:56.6]}
8... Qa5 {[%clk 0:03:07.4]} 9. Bd2 {[%clk 0:02:57.4]} 9... Bxa6 {[%clk 0:03:08]}
10. Nf3 {[%clk 0:02:58.1]} 10... Qb4 {[%clk 0:03:06]} 11. e5 {[%clk 0:02:13.9]}
11... Ng4 {[%clk 0:03:02.3]} 12. Nb5 {[%clk 0:01:59.7]} 12... Qe4 {[%clk
0:02:53.8]} 13. O-O {[%clk 0:01:33.4]} 13... Bxb5 {[%clk 0:02:31.3]} 14. Bxb5
{[%clk 0:01:32.6]} 14... Nxe5 {[%clk 0:02:27.2]} 15. Nxe5 {[%clk 0:01:25.3]}
15... Bxe5 {[%clk 0:02:21.4]} 16. Bh6 {[%clk 0:01:25]} 16... Qh4 {[%clk
0:02:10.1]} 0-1

[Event "*** Titled Tuesday Blitz"]
[Site "Chess.com"]
[Date "2018.01.02"]
[Round "10"]
[White "timator"]
[Black "asms9699"]
[Result "1/2-1/2"]
[WhiteElo "2339"]
[BlackElo "2501"]
[TimeControl "180+2"]
[EndTime "15:09:45 PST"]
[Termination "Game drawn by repetition"]

1. Nf3 {[%clk 0:02:58]} 1... d5 {[%clk 0:03:00.7]} 2. g3 {[%clk 0:02:59.1]} 2...
Nf6 {[%clk 0:03:01.2]} 3. Bg2 {[%clk 0:03:00.4]} 3... c5 {[%clk 0:03:02]} 4. O-O
{[%clk 0:03:00]} 4... Nc6 {[%clk 0:03:03.2]} 5. d4 {[%clk 0:03:00.9]} 5... e6
{[%clk 0:03:03.9]} 6. c4 {[%clk 0:03:01]} 6... dxc4 {[%clk 0:03:05.8]} 7. Qa4
{[%clk 0:02:59]} 7... Bd7 {[%clk 0:03:05.8]} 8. Qxc4 {[%clk 0:02:59.2]} 8...
cxd4 {[%clk 0:03:04]} 9. Nxd4 {[%clk 0:03:00.1]} 9... Rc8 {[%clk 0:03:05.5]} 10.
Nc3 {[%clk 0:02:56.8]} 10... Nxd4 {[%clk 0:03:06.3]} 11. Qxd4 {[%clk 0:02:57.4]}
11... Bc5 {[%clk 0:03:07.6]} 12. Qh4 {[%clk 0:02:52.4]} 12... O-O {[%clk
0:03:04.7]} 13. Bg5 {[%clk 0:02:52.7]} 13... h6 {[%clk 0:03:03.1]} 14. Bxf6
{[%clk 0:02:52.6]} 14... Qxf6 {[%clk 0:03:03.3]} 15. Qxf6 {[%clk 0:02:53.3]}
15... gxf6 {[%clk 0:03:05.2]} 16. Bxb7 {[%clk 0:02:47.5]} 16... Rb8 {[%clk
0:03:05.8]} 17. Bg2 {[%clk 0:02:48.9]} 17... Rxb2 {[%clk 0:03:05.5]} 18. Rab1
{[%clk 0:02:49]} 18... Rfb8 {[%clk 0:03:04.7]} 19. Rxb2 {[%clk 0:01:59.3]} 19...
Rxb2 {[%clk 0:03:06.6]} 20. Rd1 {[%clk 0:01:59.9]} 20... Rc2 {[%clk 0:02:36.2]}
21. Rxd7 {[%clk 0:01:22.8]} 21... Rxc3 {[%clk 0:02:36.5]} 22. Be4 {[%clk
0:01:19.4]} 22... f5 {[%clk 0:02:36.2]} 23. Bd3 {[%clk 0:01:19.7]} 23... Kg7
{[%clk 0:02:29.6]} 24. Kg2 {[%clk 0:01:19.6]} 24... Kf6 {[%clk 0:02:29.6]} 25.
Rb7 {[%clk 0:01:18]} 25... Bb6 {[%clk 0:02:27.5]} 26. a4 {[%clk 0:01:17]} 26...
Ra3 {[%clk 0:02:14.6]} 27. Bb5 {[%clk 0:01:12.6]} 27... Ra2 {[%clk 0:02:14.2]}
28. h4 {[%clk 0:01:00.9]} 28... Bc5 {[%clk 0:02:07]} 29. Rc7 {[%clk 0:00:58.6]}
29... Bb6 {[%clk 0:02:07]} 30. Rb7 {[%clk 0:00:58]} 30... Bc5 {[%clk 0:02:06.4]}
31. Rc7 {[%clk 0:00:59.2]} 31... Bb6 {[%clk 0:02:07.4]} 32. Rb7 {[%clk
0:01:00.7]} 32... Bc5 {[%clk 0:02:08.3]} 33. Rc7 {[%clk 0:01:02.2]} 33... Bb6
{[%clk 0:02:09.3]} 34. Rb7 {[%clk 0:01:03.7]} 1/2-1/2

[Event "*** Titled Tuesday Blitz"]
[Site "Chess.com"]
[Date "2018.01.02"]
[Round "10"]
[White "Laico"]
[Black "DrZeiss"]
[Result "1-0"]
[WhiteElo "2166"]
[BlackElo "2167"]
[TimeControl "180+2"]
[EndTime "15:09:57 PST"]
[Termination "Laico won on time"]

1. e4 {[%clk 0:03:01.9]} 1... c5 {[%clk 0:03:00.3]} 2. Nc3 {[%clk 0:03:02.6]}
2... Nc6 {[%clk 0:03:00.1]} 3. f4 {[%clk 0:03:04.2]} 3... g6 {[%clk 0:03:00.3]}
4. Nf3 {[%clk 0:03:05.8]} 4... Bg7 {[%clk 0:03:00.7]} 5. Bb5 {[%clk 0:03:07.5]}
5... Nd4 {[%clk 0:03:00]} 6. O-O {[%clk 0:03:09]} 6... Nxb5 {[%clk 0:02:59.1]}
7. Nxb5 {[%clk 0:03:10.9]} 7... d5 {[%clk 0:02:56.7]} 8. exd5 {[%clk 0:03:11.8]}
8... a6 {[%clk 0:02:57]} 9. Nc3 {[%clk 0:03:12.9]} 9... Nf6 {[%clk 0:02:57.3]}
10. d4 {[%clk 0:03:14]} 10... Nxd5 {[%clk 0:02:56]} 11. dxc5 {[%clk 0:03:14]}
11... Nxc3 {[%clk 0:02:55.2]} 12. Qxd8+ {[%clk 0:03:15.9]} 12... Kxd8 {[%clk
0:02:55.4]} 13. bxc3 {[%clk 0:03:17.8]} 13... Bxc3 {[%clk 0:02:54.4]} 14. Rb1
{[%clk 0:03:19.4]} 14... Kc7 {[%clk 0:02:37.1]} 15. Rb3 {[%clk 0:03:20.3]} 15...
Bf6 {[%clk 0:02:27.7]} 16. Bd2 {[%clk 0:03:19.4]} 16... a5 {[%clk 0:02:23.6]}
17. Rb5 {[%clk 0:03:20.4]} 17... a4 {[%clk 0:02:15.1]} 18. Rfb1 {[%clk
0:03:11.9]} 18... Ra7 {[%clk 0:01:59.9]} 19. Ba5+ {[%clk 0:02:57.8]} 19... Kc6
{[%clk 0:01:56.6]} 20. Rb6+ {[%clk 0:02:56.3]} 20... Kd5 {[%clk 0:01:46.8]} 21.
Be1 {[%clk 0:02:47.2]} 21... Bf5 {[%clk 0:01:25.7]} 22. Rd1+ {[%clk 0:02:36.3]}
22... Kc4 {[%clk 0:00:53.2]} 23. c3 {[%clk 0:02:31.9]} 23... Rc8 {[%clk
0:00:33.3]} 24. Rb4+ {[%clk 0:02:28]} 24... Kxc5 {[%clk 0:00:21.7]} 25. Bf2+
{[%clk 0:02:29.3]} 25... Kc6 {[%clk 0:00:21.8]} 26. Bxa7 {[%clk 0:02:29.2]} 1-0

[Event "*** Titled Tuesday Blitz"]
[Site "Chess.com"]
[Date "2018.01.02"]
[Round "10"]
[White "TijanaBlagojevic"]
[Black "PowerThinking2650"]
[Result "1-0"]
[WhiteElo "2378"]
[BlackElo "2187"]
[TimeControl "180+2"]
[EndTime "15:10:14 PST"]
[Termination "TijanaBlagojevic won by resignation"]

1. e4 {[%clk 0:03:01.9]} 1... e5 {[%clk 0:02:58.5]} 2. Nf3 {[%clk 0:03:02.6]}
2... Nc6 {[%clk 0:02:59.3]} 3. Nc3 {[%clk 0:03:04.1]} 3... Nf6 {[%clk 0:02:59]}
4. d4 {[%clk 0:03:05.7]} 4... exd4 {[%clk 0:02:59.6]} 5. Nxd4 {[%clk 0:03:07.3]}
5... Bb4 {[%clk 0:02:58.3]} 6. Nxc6 {[%clk 0:03:08.3]} 6... bxc6 {[%clk
0:02:59.4]} 7. Be2 {[%clk 0:03:09.8]} 7... Nxe4 {[%clk 0:02:56.4]} 8. O-O {[%clk
0:03:06]} 8... Nxc3 {[%clk 0:02:48.2]} 9. bxc3 {[%clk 0:03:06.7]} 9... Bxc3
{[%clk 0:02:49.3]} 10. Rb1 {[%clk 0:03:06.4]} 10... O-O {[%clk 0:02:44.2]} 11.
Bd3 {[%clk 0:03:07.4]} 11... d5 {[%clk 0:02:38.2]} 12. Bxh7+ {[%clk 0:03:06.8]}
12... Kxh7 {[%clk 0:02:37.2]} 13. Qd3+ {[%clk 0:03:07.7]} 13... Kg8 {[%clk
0:02:18.6]} 14. Qxc3 {[%clk 0:03:09.2]} 14... Ba6 {[%clk 0:02:17.2]} 15. Re1
{[%clk 0:03:04.4]} 15... Bc4 {[%clk 0:02:17.7]} 16. Bb2 {[%clk 0:03:05.2]} 16...
f6 {[%clk 0:02:17.7]} 17. a4 {[%clk 0:03:01.9]} 17... Qd7 {[%clk 0:02:15.9]} 18.
Ba3 {[%clk 0:02:56.7]} 18... Rfe8 {[%clk 0:02:15.3]} 19. Bc5 {[%clk 0:02:57.8]}
19... a6 {[%clk 0:02:15.4]} 20. a5 {[%clk 0:02:58]} 20... Bb5 {[%clk 0:02:10.5]}
21. Qd4 {[%clk 0:02:56.6]} 21... Qf5 {[%clk 0:02:08.7]} 22. f3 {[%clk
0:02:44.8]} 22... Re5 {[%clk 0:02:08.9]} 23. Re3 {[%clk 0:02:40.2]} 23... Rae8
{[%clk 0:02:08.6]} 24. Rbe1 {[%clk 0:02:40.9]} 24... Qxc2 {[%clk 0:01:42]} 25.
Rxe5 {[%clk 0:02:40.6]} 25... fxe5 {[%clk 0:01:19.9]} 26. Qe3 {[%clk 0:02:41.1]}
26... d4 {[%clk 0:01:12]} 27. Bxd4 {[%clk 0:02:41.8]} 27... c5 {[%clk
0:00:59.1]} 28. Bxe5 {[%clk 0:02:41.2]} 28... Qf5 {[%clk 0:00:56.5]} 29. Qxc5
{[%clk 0:02:37.8]} 29... c6 {[%clk 0:00:53.3]} 30. Qd4 {[%clk 0:02:32.1]} 30...
Qg6 {[%clk 0:00:44.9]} 31. Re4 {[%clk 0:02:31.3]} 31... Qf7 {[%clk 0:00:39.6]}
32. Rg4 {[%clk 0:02:29.5]} 1-0

[Event "*** Titled Tuesday Blitz"]
[Site "Chess.com"]
[Date "2018.01.02"]
[Round "10"]
[White "SanQui14"]
[Black "CookiesAndIceCream"]
[Result "1-0"]
[WhiteElo "2190"]
[BlackElo "2084"]
[TimeControl "180+2"]
[EndTime "15:10:21 PST"]
[Termination "SanQui14 won by checkmate"]

1. d4 {[%clk 0:03:01.9]} 1... d5 {[%clk 0:02:58.8]} 2. c4 {[%clk 0:03:03.8]}
2... c6 {[%clk 0:03:00.1]} 3. Nf3 {[%clk 0:03:01.2]} 3... Nf6 {[%clk 0:03:01.2]}
4. e3 {[%clk 0:02:53]} 4... e6 {[%clk 0:03:01.6]} 5. Be2 {[%clk 0:02:52.2]} 5...
Nbd7 {[%clk 0:03:02.4]} 6. O-O {[%clk 0:02:54.1]} 6... Bd6 {[%clk 0:02:59.3]} 7.
Nc3 {[%clk 0:02:54.3]} 7... O-O {[%clk 0:02:56.9]} 8. b3 {[%clk 0:02:55.6]} 8...
e5 {[%clk 0:02:37.7]} 9. Bb2 {[%clk 0:02:50.5]} 9... e4 {[%clk 0:02:34.1]} 10.
Nd2 {[%clk 0:02:47.2]} 10... Re8 {[%clk 0:02:35.5]} 11. Qc2 {[%clk 0:02:47.4]}
11... Nf8 {[%clk 0:02:36.5]} 12. Rac1 {[%clk 0:02:45.9]} 12... Ng6 {[%clk
0:02:28.9]} 13. cxd5 {[%clk 0:02:44.3]} 13... cxd5 {[%clk 0:02:29.1]} 14. Nb5
{[%clk 0:02:45.1]} 14... Bg4 {[%clk 0:02:10.8]} 15. Nb1 {[%clk 0:02:31.8]} 15...
Rc8 {[%clk 0:02:04.9]} 16. Qd2 {[%clk 0:02:28.9]} 16... Bb8 {[%clk 0:01:59]} 17.
Ba3 {[%clk 0:02:23.6]} 17... Rxc1 {[%clk 0:01:52.7]} 18. Rxc1 {[%clk 0:02:24]}
18... a6 {[%clk 0:01:54.3]} 19. N5c3 {[%clk 0:02:24.9]} 19... Qc7 {[%clk
0:01:33.5]} 20. g3 {[%clk 0:02:20.7]} 20... Qd7 {[%clk 0:01:34.2]} 21. Na4
{[%clk 0:02:18.9]} 21... Qf5 {[%clk 0:01:33.9]} 22. Bf1 {[%clk 0:02:17]} 22...
Bf3 {[%clk 0:01:27.3]} 23. Nb6 {[%clk 0:02:11.3]} 23... Ng4 {[%clk 0:01:19.9]}
24. Rc5 {[%clk 0:02:08]} 24... Qh5 {[%clk 0:00:43.7]} 25. h3 {[%clk 0:02:07]}
25... Nf6 {[%clk 0:00:45.1]} 26. Nc3 {[%clk 0:01:59.5]} 26... Rd8 {[%clk
0:00:43.3]} 27. Ncxd5 {[%clk 0:01:56.4]} 27... Nxd5 {[%clk 0:00:28]} 28. Nxd5
{[%clk 0:01:56.5]} 28... Rxd5 {[%clk 0:00:19.7]} 29. Rc8+ {[%clk 0:01:55.4]}
29... Nf8 {[%clk 0:00:21.2]} 30. Rxf8# {[%clk 0:01:56.4]} 1-0

[Event "*** Titled Tuesday Blitz"]
[Site "Chess.com"]
[Date "2018.01.02"]
[Round "10"]
[White "angieflynn"]
[Black "Maili15"]
[Result "0-1"]
[WhiteElo "1789"]
[BlackElo "2268"]
[TimeControl "180+2"]
[EndTime "15:10:25 PST"]
[Termination "Maili15 won by resignation"]

1. d4 {[%clk 0:03:01.9]} 1... d5 {[%clk 0:03:00.3]} 2. Bf4 {[%clk 0:03:01]} 2...
Nf6 {[%clk 0:03:00.5]} 3. Nf3 {[%clk 0:03:01.1]} 3... e6 {[%clk 0:03:00.2]} 4.
e3 {[%clk 0:03:01.5]} 4... Be7 {[%clk 0:03:00.4]} 5. Nbd2 {[%clk 0:02:58.6]}
5... O-O {[%clk 0:03:00.3]} 6. Bd3 {[%clk 0:02:57.4]} 6... c5 {[%clk 0:03:00.4]}
7. c3 {[%clk 0:02:58.2]} 7... b6 {[%clk 0:02:59]} 8. O-O {[%clk 0:02:50.5]} 8...
Ba6 {[%clk 0:02:57.5]} 9. Qe2 {[%clk 0:02:40.5]} 9... Bxd3 {[%clk 0:02:54.4]}
10. Qxd3 {[%clk 0:02:39.6]} 10... Nbd7 {[%clk 0:02:54.6]} 11. Ne5 {[%clk
0:02:34.7]} 11... Nxe5 {[%clk 0:02:52.5]} 12. dxe5 {[%clk 0:02:34.5]} 12... Nd7
{[%clk 0:02:52.8]} 13. h3 {[%clk 0:02:32.6]} 13... Qc7 {[%clk 0:02:52.5]} 14.
Nf3 {[%clk 0:02:27]} 14... Rab8 {[%clk 0:02:49.6]} 15. a4 {[%clk 0:02:24.2]}
15... c4 {[%clk 0:02:40.3]} 16. Qc2 {[%clk 0:02:16.8]} 16... Nc5 {[%clk
0:02:40.3]} 17. Bh2 {[%clk 0:02:11.5]} 17... a6 {[%clk 0:02:38.5]} 18. Nd4
{[%clk 0:02:09.7]} 18... b5 {[%clk 0:02:36.3]} 19. axb5 {[%clk 0:01:57.4]} 19...
axb5 {[%clk 0:02:38.2]} 20. Ra2 {[%clk 0:01:50.7]} 20... b4 {[%clk 0:02:34.5]}
21. cxb4 {[%clk 0:01:51.3]} 21... Rxb4 {[%clk 0:02:36.2]} 22. Rfa1 {[%clk
0:01:49.1]} 22... Rfb8 {[%clk 0:02:26.1]} 23. Ra7 {[%clk 0:01:42]} 23... R4b7
{[%clk 0:02:26.1]} 24. Nb5 {[%clk 0:01:28.6]} 24... Qb6 {[%clk 0:02:03.4]} 25.
Rxb7 {[%clk 0:01:28.5]} 25... Qxb7 {[%clk 0:02:04.7]} 26. Nd6 {[%clk 0:01:30.1]}
26... Qxb2 {[%clk 0:01:54.8]} 27. Qxb2 {[%clk 0:00:46.8]} 27... Rxb2 {[%clk
0:01:56.7]} 28. Ra8+ {[%clk 0:00:47.7]} 28... Bf8 {[%clk 0:01:57.3]} 29. g4
{[%clk 0:00:47.4]} 29... c3 {[%clk 0:01:42.7]} 30. Nc8 {[%clk 0:00:48]} 30...
Rb7 {[%clk 0:01:37]} 31. Ra3 {[%clk 0:00:42.1]} 31... c2 {[%clk 0:01:36.1]} 32.
Rc3 {[%clk 0:00:42.7]} 32... Rb1+ {[%clk 0:01:35.8]} 0-1

[Event "*** Titled Tuesday Blitz"]
[Site "Chess.com"]
[Date "2018.01.02"]
[Round "10"]
[White "littleozy"]
[Black "GM_Huschenbeth"]
[Result "0-1"]
[WhiteElo "2392"]
[BlackElo "2479"]
[TimeControl "180+2"]
[EndTime "15:10:40 PST"]
[Termination "GM_Huschenbeth won by resignation"]

1. d4 {[%clk 0:03:01.9]} 1... d5 {[%clk 0:02:59.4]} 2. c4 {[%clk 0:03:01.8]}
2... dxc4 {[%clk 0:03:01.3]} 3. e3 {[%clk 0:03:02.1]} 3... e5 {[%clk 0:03:01.1]}
4. Bxc4 {[%clk 0:03:00.5]} 4... exd4 {[%clk 0:03:02.1]} 5. Nf3 {[%clk 0:03:02]}
5... Nc6 {[%clk 0:02:59.2]} 6. O-O {[%clk 0:02:56.9]} 6... Bd6 {[%clk 0:02:34]}
7. exd4 {[%clk 0:02:51.1]} 7... Bf5 {[%clk 0:02:01]} 8. Qb3 {[%clk 0:02:36.9]}
8... Bg6 {[%clk 0:01:29.9]} 9. Qxb7 {[%clk 0:02:34.7]} 9... Nge7 {[%clk
0:01:01]} 10. d5 {[%clk 0:02:07.9]} 10... Rb8 {[%clk 0:01:00.9]} 11. Qa6 {[%clk
0:02:06.4]} 11... Nb4 {[%clk 0:01:00.1]} 12. Bb5+ {[%clk 0:01:53.2]} 12... Kf8
{[%clk 0:01:00.3]} 13. Qa4 {[%clk 0:01:53.8]} 13... a6 {[%clk 0:00:58.2]} 14.
Be2 {[%clk 0:01:46.3]} 14... Nc2 {[%clk 0:00:55.4]} 15. Nh4 {[%clk 0:01:37.1]}
15... Nxa1 {[%clk 0:00:53.6]} 16. Nxg6+ {[%clk 0:01:37.3]} 16... hxg6 {[%clk
0:00:55.5]} 17. Nc3 {[%clk 0:01:38.4]} 17... Bxh2+ {[%clk 0:00:55.9]} 18. Kh1
{[%clk 0:01:38.1]} 18... Bg3+ {[%clk 0:00:57]} 19. Kg1 {[%clk 0:01:39.1]} 19...
Bh2+ {[%clk 0:00:57.8]} 20. Kh1 {[%clk 0:01:40.3]} 20... Rb4 {[%clk 0:00:51.5]}
21. Qxa6 {[%clk 0:01:28.5]} 21... Rbh4 {[%clk 0:00:51.3]} 22. g3 {[%clk
0:01:29.6]} 22... Bxg3+ {[%clk 0:00:51.9]} 23. Kg2 {[%clk 0:01:31.3]} 23... Bd6
{[%clk 0:00:42.3]} 24. Bg5 {[%clk 0:01:28.4]} 24... Rh2+ {[%clk 0:00:40.6]} 25.
Kf3 {[%clk 0:01:29.6]} 25... R8h3+ {[%clk 0:00:29.3]} 26. Ke4 {[%clk 0:01:28.3]}
26... Nc2 {[%clk 0:00:28.3]} 27. Bg4 {[%clk 0:01:27]} 27... f5+ {[%clk
0:00:27.9]} 0-1

[Event "*** Titled Tuesday Blitz"]
[Site "Chess.com"]
[Date "2018.01.02"]
[Round "10"]
[White "capatl"]
[Black "Keaton87"]
[Result "1-0"]
[WhiteElo "2401"]
[BlackElo "2507"]
[TimeControl "180+2"]
[EndTime "15:10:58 PST"]
[Termination "capatl won by resignation"]

1. c4 {[%clk 0:03:01.9]} 1... e6 {[%clk 0:02:59.4]} 2. Nc3 {[%clk 0:03:02.3]}
2... d5 {[%clk 0:03:00.2]} 3. cxd5 {[%clk 0:03:03.7]} 3... exd5 {[%clk 0:03:01]}
4. d4 {[%clk 0:03:05.6]} 4... Be7 {[%clk 0:02:56.2]} 5. Nf3 {[%clk 0:03:04.8]}
5... c6 {[%clk 0:02:56]} 6. Bf4 {[%clk 0:03:00.1]} 6... Nf6 {[%clk 0:02:52.1]}
7. e3 {[%clk 0:03:00.4]} 7... Bd6 {[%clk 0:02:49.2]} 8. Bxd6 {[%clk 0:02:59.1]}
8... Qxd6 {[%clk 0:02:51.1]} 9. Bd3 {[%clk 0:02:58.2]} 9... Bg4 {[%clk
0:02:51.8]} 10. Qb3 {[%clk 0:02:52.4]} 10... Qc7 {[%clk 0:02:44.7]} 11. Ne5
{[%clk 0:02:50.6]} 11... Bh5 {[%clk 0:02:41.6]} 12. Rc1 {[%clk 0:02:49.1]} 12...
Qb6 {[%clk 0:02:41.7]} 13. Qa3 {[%clk 0:02:01.7]} 13... Nbd7 {[%clk 0:02:38]}
14. f4 {[%clk 0:01:33.2]} 14... Nxe5 {[%clk 0:02:32.1]} 15. fxe5 {[%clk
0:01:31.9]} 15... Nd7 {[%clk 0:02:31.4]} 16. O-O {[%clk 0:01:26.8]} 16... Nxe5
{[%clk 0:02:25.5]} 17. Na4 {[%clk 0:01:23.5]} 17... Qc7 {[%clk 0:02:15.1]} 18.
dxe5 {[%clk 0:01:22.3]} 18... Qxe5 {[%clk 0:02:17]} 19. Bf5 {[%clk 0:01:08]}
19... Bg6 {[%clk 0:02:11.4]} 20. Qc3 {[%clk 0:00:51.7]} 20... Qxc3 {[%clk
0:02:05.8]} 21. Rxc3 {[%clk 0:00:51.2]} 21... Ke7 {[%clk 0:02:03.8]} 22. Nc5
{[%clk 0:00:51.1]} 22... Rab8 {[%clk 0:02:04.8]} 23. e4 {[%clk 0:00:43.4]} 23...
d4 {[%clk 0:02:03.3]} 24. Rd3 {[%clk 0:00:41.5]} 24... b6 {[%clk 0:02:00.7]} 25.
Nb3 {[%clk 0:00:33]} 25... c5 {[%clk 0:02:01.7]} 26. Nd2 {[%clk 0:00:34]} 26...
Rhd8 {[%clk 0:01:59.3]} 27. b3 {[%clk 0:00:34.3]} 27... b5 {[%clk 0:01:56.8]}
28. Rdf3 {[%clk 0:00:32.7]} 28... Rf8 {[%clk 0:01:52.3]} 29. Bxg6 {[%clk
0:00:32.6]} 29... hxg6 {[%clk 0:01:54.2]} 30. Kf2 {[%clk 0:00:31.9]} 30... f6
{[%clk 0:01:55.2]} 31. Ke2 {[%clk 0:00:32.8]} 31... Rh8 {[%clk 0:01:55.5]} 32.
h3 {[%clk 0:00:33.5]} 32... Ke6 {[%clk 0:01:56.8]} 33. Kd3 {[%clk 0:00:34.4]}
33... Rhc8 {[%clk 0:01:53.7]} 34. Rc1 {[%clk 0:00:34.8]} 34... Rc6 {[%clk
0:01:53]} 35. Rg3 {[%clk 0:00:35.7]} 35... g5 {[%clk 0:01:53.4]} 36. h4 {[%clk
0:00:35.1]} 36... gxh4 {[%clk 0:01:54.4]} 37. Rxg7 {[%clk 0:00:35.9]} 37... a6
{[%clk 0:01:54.7]} 38. Nf3 {[%clk 0:00:34.8]} 38... Rh8 {[%clk 0:01:53.7]} 39.
Nxd4+ {[%clk 0:00:35.4]} 1-0

[Event "*** Titled Tuesday Blitz"]
[Site "Chess.com"]
[Date "2018.01.02"]
[Round "10"]
[White "geeeeri"]
[Black "Marcus_Harvey"]
[Result "0-1"]
[WhiteElo "2407"]
[BlackElo "2545"]
[TimeControl "180+2"]
[EndTime "15:11:00 PST"]
[Termination "Marcus_Harvey won by resignation"]

1. e4 {[%clk 0:03:01.9]} 1... e6 {[%clk 0:03:00.8]} 2. d3 {[%clk 0:03:02.3]}
2... c5 {[%clk 0:03:00.4]} 3. Nd2 {[%clk 0:03:04.2]} 3... Nc6 {[%clk 0:03:00.3]}
4. Ngf3 {[%clk 0:03:05.7]} 4... d6 {[%clk 0:03:01.6]} 5. g3 {[%clk 0:03:07.6]}
5... Nge7 {[%clk 0:03:03]} 6. Bg2 {[%clk 0:03:09.5]} 6... g6 {[%clk 0:03:04.2]}
7. O-O {[%clk 0:03:11.4]} 7... Bg7 {[%clk 0:03:05.5]} 8. Re1 {[%clk 0:03:12.2]}
8... O-O {[%clk 0:03:06.5]} 9. h4 {[%clk 0:03:13.6]} 9... h6 {[%clk 0:03:07.3]}
10. Nf1 {[%clk 0:03:15.1]} 10... e5 {[%clk 0:03:08.7]} 11. N1h2 {[%clk 0:03:16]}
11... Be6 {[%clk 0:03:09.7]} 12. c3 {[%clk 0:03:12.9]} 12... Qd7 {[%clk
0:03:10.3]} 13. Be3 {[%clk 0:03:13.2]} 13... f5 {[%clk 0:03:10.7]} 14. Qd2
{[%clk 0:03:12.2]} 14... Kh7 {[%clk 0:03:11.2]} 15. h5 {[%clk 0:03:07.8]} 15...
g5 {[%clk 0:03:12]} 16. Bxg5 {[%clk 0:03:07.7]} 16... hxg5 {[%clk 0:03:13.3]}
17. Nxg5+ {[%clk 0:03:09.5]} 17... Kg8 {[%clk 0:03:14.7]} 18. f4 {[%clk
0:03:09.5]} 18... exf4 {[%clk 0:03:13.6]} 19. gxf4 {[%clk 0:03:10.1]} 19... fxe4
{[%clk 0:03:09.9]} 20. dxe4 {[%clk 0:03:11.1]} 20... Rad8 {[%clk 0:02:48.6]} 21.
f5 {[%clk 0:03:07.6]} 21... Bf7 {[%clk 0:02:40.3]} 22. Nxf7 {[%clk 0:03:01.4]}
22... Rxf7 {[%clk 0:02:40.8]} 23. Qg5 {[%clk 0:02:57.4]} 23... Kh7 {[%clk
0:02:29.9]} 24. Ng4 {[%clk 0:02:53.2]} 24... Ne5 {[%clk 0:02:31]} 25. Ne3 {[%clk
0:02:15.4]} 25... Bh6 {[%clk 0:02:16.8]} 26. Qh4 {[%clk 0:02:16.4]} 26... Rg8
{[%clk 0:02:11.8]} 27. Kh1 {[%clk 0:02:17.6]} 27... Nd3 {[%clk 0:01:48.4]} 28.
f6 {[%clk 0:01:50]} 28... Nxe1 {[%clk 0:01:39.1]} 29. Bh3 {[%clk 0:01:51.2]}
29... Nf3 {[%clk 0:01:13.1]} 30. Bxd7 {[%clk 0:01:17.8]} 30... Nxh4 {[%clk
0:01:13]} 0-1